bitfinex/quotes_ETHUSD_20250914
["timestamp","ask_amount","ask_price","bid_price","bid_amount"]
[1757829799327,0.002,4679.3,4679.2,11.57444331]
[1757829800742,0.002,4679.3,4679.2,11.26654331]
[1757829808361,0.002,4679.3,4679.2,11.37294331]
[1757829808671,0.002,4679.8,4679.7,5.92888911]
[1757829808969,0.002,4679.8,4679.7,11.39993836]
[1757829809135,0.002,4679.8,4679.7,13.18629424]
[1757829809341,0.002,4679.8,4679.7,13.65759424]
[1757829810568,0.002,4679.8,4679.7,13.34969424]
[1757829810772,0.3095,4679.8,4679.7,13.34969424]
[1757829811775,0.002,4679.8,4679.7,13.65759424]
[1757829814541,0.002,4679.8,4679.7,14.14679424]
[1757829814735,0.002,4679.8,4679.7,13.34969424]
[1757829816151,0.002,4679.8,4679.7,13.65759424]
[1757829817976,0.002,4679.8,4679.7,13.34969424]
[1757829818544,0.002,4679.8,4679.7,13.45609424]
[1757829821075,0.3095,4679.8,4679.7,13.45609424]
[1757829821278,0.3095,4679.8,4679.7,9.90509424]
[1757829821465,0.3095,4679.8,4679.7,13.45309424]
[1757829821673,0.7597,4679.8,4679.7,13.45309424]
[1757829823279,0.3095,4679.8,4679.7,13.45309424]
[1757829824252,0.7597,4679.8,4679.7,13.45309424]
[1757829825124,0.3095,4679.8,4679.7,9.11309424]
[1757829825295,1.231,4679.8,4679.7,10.32388911]
[1757829825582,1.231,4679.8,4679.7,1.64]
[1757829825883,1.231,4679.8,4679.7,5.187]
[1757829827890,1.231,4679.8,4679.7,5.188]
[1757829828185,1.231,4679.8,4679.7,1.64]
[1757829828387,1.231,4679.8,4679.7,5.188]
[1757829828592,1.231,4679.8,4679.3,0.001]
[1757829828593,1.36474,4679.8,4679.3,0.001]
[1757829828974,0.1064,4679.4,4679.3,0.001]
[1757829829370,0.4103,4679.4,4679.3,0.001]
[1757829829705,1.332,4679.4,4679.3,0.001]
[1757829829881,1.69247335,4679.4,4679.3,0.001]
[1757829830404,1.2256,4679.4,4679.3,0.001]
[1757829831872,1.2256,4679.4,4679.3,3.555]
[1757829832908,1.2256,4679.4,4679.3,0.001]
[1757829833890,3.36262611,4679.4,4679.3,0.001]
[1757829836120,3.68178094,4679.4,4679.3,0.001]
[1757829836286,3.36262611,4679.4,4679.3,0.001]
[1757829837520,3.68178094,4679.4,4679.3,0.001]
[1757829839519,6.68178094,4679.4,4679.3,0.001]
[1757829839724,6.76731728,4679.4,4679.3,0.001]
[1757829840085,7.2260507,4679.4,4679.3,0.001]
[1757829841105,2.13793988,4677.4,4677.3,0.001]
[1757829841695,3.33303988,4677.4,4677.3,0.001]
[1757829845910,6.89403988,4677.4,4677.3,0.001]
[1757829846623,6.46163988,4677.4,4677.3,0.001]
[1757829846929,6.89403988,4677.4,4677.3,0.001]
[1757829847128,7.79723024,4677.4,4677.3,0.001]
[1757829847597,7.36483024,4677.4,4677.3,0.001]
[1757829847925,7.79723024,4677.4,4677.3,0.001]
[1757829848626,7.79723024,4677.4,4676.3,0.001]
[1757829848627,2.13816844,4676.9,4676.3,0.001]
[1757829848802,4.89674686,4676.4,4676.3,0.001]
[1757829849008,5.99989705,4676.4,4676.3,0.001]
[1757829849206,6.89749705,4676.4,4676.3,0.001]
[1757829853415,2.43589705,4676.4,4676.3,0.001]
[1757829853618,5.99889705,4676.4,4676.3,0.001]
[1757829854027,6.90208741,4676.4,4676.3,0.001]
[1757829854335,7.79968741,4676.4,4676.3,0.001]
[1757829855164,10.79968741,4676.4,4676.3,0.001]
[1757829855343,10.91848562,4676.4,4676.3,0.001]
[1757829855532,11.37479463,4676.4,4676.3,0.001]
[1757829856107,14.13314444,4676.4,4676.3,0.001]
[1757829856334,2.13862571,4675.9,4675.3,0.002]
[1757829856544,7.89720423,4675.4,4675.3,0.002]
[1757829856713,11.88980244,4675.4,4675.3,0.002]
[1757829857048,12.94270926,4675.4,4675.3,0.002]
[1757829858754,2.13903743,4675.0,4674.6,0.001]
[1757829858955,12.3665776,4675.0,4674.6,0.001]
[1757829859160,13.6416776,4675.0,4674.6,0.001]
[1757829859458,13.76045888,4675.0,4674.6,0.001]
[1757829860868,13.76046606,4675.0,4674.6,0.001]
[1757829861231,21.23669125,4675.0,4674.6,0.001]
[1757829861973,2.1391747,4674.7,4674.6,0.001]
[1757829862140,10.72609347,4674.7,4674.6,0.001]
[1757829862341,10.72609347,4674.7,4674.6,0.2924]
[1757829863032,4.16009347,4674.7,4674.6,1.2198]
[1757829863249,7.72609347,4674.7,4674.6,1.2198]
[1757829863947,4.16009347,4674.7,4674.6,1.2198]
[1757829864147,7.72609347,4674.7,4674.6,1.2198]
[1757829865229,1.641,4674.7,4674.6,1.2198]
[1757829865429,5.207,4674.7,4674.6,1.2198]
[1757829866765,3.7801747,4674.7,4674.6,1.2198]
[1757829866972,5.207,4674.7,4674.6,1.2198]
[1757829868662,7.3461747,4674.7,4674.6,1.2198]
[1757829868960,5.207,4674.7,4674.6,1.2198]
[1757829869642,7.3461747,4674.7,4674.6,1.2198]
[1757829870762,5.207,4674.7,4674.6,1.2198]
[1757829872930,2.59726901,4674.9,4674.6,0.7555]
[1757829872931,0.45816325,4674.9,4674.6,0.7555]
[1757829873131,3.564,4674.8,4674.7,0.9274]
[1757829873338,3.564,4674.8,4674.6,0.001]
[1757829873648,3.564,4674.8,4674.7,0.2914]
[1757829873844,3.564,4674.8,4674.7,1.2188]
[1757829874406,0.1064,4674.7,4674.6,0.001]
[1757829874546,2.2455747,4674.7,4674.6,0.001]
[1757829874744,3.64018713,4674.7,4674.6,0.001]
[1757829876102,10.59357039,4674.7,4674.6,0.001]
[1757829876396,5.13926623,4674.5,4674.3,1e-08]
[1757829876547,8.79842334,4674.4,4674.3,1e-08]
[1757829876892,10.27289833,4674.4,4674.3,1e-08]
[1757829877101,10.35852513,4674.4,4674.3,1e-08]
[1757829877760,10.27489833,4674.4,4674.3,1e-08]
[1757829879548,2.1394493,4674.1,4674.0,1e-08]
[1757829879768,12.70827165,4674.1,4674.0,1e-08]
[1757829879987,14.18274664,4674.1,4674.0,1e-08]
[1757829880191,14.18274664,4674.1,4672.3,0.9274]
[1757829880192,3.0,4674.0,4671.1,2.14080391]
[1757829880409,3.0,4674.0,4671.9,0.4631]
[1757829880410,2.14016718,4672.6,4671.9,0.4631]
[1757829880682,1.642,4672.6,4672.5,0.2914]
[1757829880884,5.27,4672.6,4672.5,1.2188]
[1757829881250,1.76151243,4672.6,4672.5,0.7545]
[1757829881472,5.27,4672.6,4672.5,0.7545]
[1757829881675,5.38951243,4672.6,4672.5,1.2188]
[1757829882975,3.628,4672.6,4672.5,2.0108]
[1757829883874,3.628,4672.6,4672.5,4.15098191]
[1757829884076,0.1196494,4673.3,4672.7,2.14008806]
[1757829884320,3.628,4673.2,4672.6,1.7194]
[1757829884483,3.628,4673.2,4673.1,0.2914]
[1757829885406,3.628,4673.2,4673.1,1.2188]
[1757829887116,3.628,4673.2,4673.1,0.7545]
[1757829887822,3.628,4673.2,4673.1,0.2914]
[1757829889315,5.1637439,4673.2,4672.2,0.4534]
[1757829889513,2.1400756,4672.8,4672.2,0.4534]
[1757829889708,3.626,4672.7,4672.2,0.4534]
[1757829889913,3.626,4672.7,4672.2,0.8965]
[1757829890113,3.626,4672.7,4672.3,0.4534]
[1757829891936,3.626,4672.7,4672.2,0.4431]
[1757829892445,3.626,4672.7,4671.9,0.8965]
[1757829892645,4.7331424,4672.7,4671.6,0.792]
[1757829892877,4.61346523,4672.7,4671.5,0.8965]
[1757829893189,2.14028865,4672.3,4671.5,0.8965]
[1757829893344,3.623,4672.2,4671.5,0.8965]
[1757829894371,5.76333461,4672.2,4671.5,0.8965]
[1757829895469,3.623,4672.2,4671.5,0.8965]
[1757829896172,5.76332378,4672.2,4671.5,0.8965]
[1757829896361,3.623,4672.2,4671.5,0.8965]
[1757829896675,3.623,4672.2,4671.6,0.001]
[1757829897683,5.76332692,4672.2,4671.6,0.001]
[1757829898580,2.14037611,4672.1,4671.6,0.001]
[1757829899255,2.59767611,4672.1,4671.6,0.001]
[1757829900477,2.14041577,4672.0,4671.6,0.001]
[1757829900777,3.619,4671.9,4671.6,0.001]
[1757829901539,6.21385834,4671.9,4671.6,0.001]
[1757829902479,0.3135,4671.7,4671.6,0.001]
[1757829902848,3.619,4671.9,4671.6,0.2892]
[1757829903576,3.619,4671.9,4671.7,0.4551]
[1757829903774,3.619,4671.9,4671.8,1.2079]
[1757829905774,3.619,4671.9,4671.8,0.7433]
[1757829905975,3.619,4671.9,4671.8,0.2882]
[1757829908513,3.619,4671.9,4671.8,1.2079]
[1757829909309,3.7204,4671.9,4671.8,1.9999]
[1757829909609,3.7204,4671.9,4671.8,1.0802]
[1757829909968,3.7204,4671.9,4671.8,1.9999]
[1757829911683,3.7204,4671.9,4671.8,1.0802]
[1757829912315,3.7204,4671.9,4671.8,0.792]
[1757829912814,3.7204,4671.9,4671.8,1.0802]
[1757829913182,3.7204,4671.9,4671.8,0.792]
[1757829914125,3.7204,4671.9,4671.8,1.0802]
[1757829914318,3.7204,4671.9,4671.8,1.9999]
[1757829914694,3.7204,4671.9,4671.8,1.0802]
[1757829915515,3.7204,4671.9,4671.8,1.5353]
[1757829915830,3.7204,4671.9,4671.8,2.0019]
[1757829916126,0.1064,4671.9,4671.8,2.0019]
[1757829916321,3.7164,4671.9,4671.8,2.0019]
[1757829916723,0.1064,4671.9,4671.8,1.5353]
[1757829916912,3.7154,4671.9,4671.8,4.14240259]
[1757829917626,0.1064,4671.9,4671.8,4.14240259]
[1757829918814,0.1064,4671.9,4671.8,1.5353]
[1757829919011,0.1064,4671.9,4671.8,1.0802]
[1757829921241,0.4081,4671.9,4671.6,0.001]
[1757829921458,0.8561,4671.9,4671.6,0.001]
[1757829921957,0.8561,4671.9,4671.6,0.793]
[1757829922656,0.4081,4671.9,4671.6,2.93358115]
[1757829922949,0.1064,4671.9,4671.8,0.792]
[1757829923150,0.1064,4671.9,4671.8,3.23400259]
[1757829923316,0.1064,4671.9,4671.8,4.16160259]
[1757829924323,3.606,4672.1,4671.8,4.16160259]
[1757829924324,3.605,4672.1,4672.0,2.93238829]
[1757829924525,3.605,4672.1,4672.0,4.16148829]
[1757829926648,3.605,4672.1,4672.0,3.69488829]
[1757829926829,3.605,4672.1,4672.0,1.5545]
[1757829927007,3.605,4672.1,4672.0,3.23391095]
[1757829927212,0.1064,4672.2,4672.0,3.23391095]
[1757829927408,3.7104,4672.2,4672.1,2.14036514]
[1757829927712,3.7094,4672.2,4672.1,3.23386514]
[1757829929245,1.642,4672.4,4672.3,2.93227352]
[1757829929448,5.245,4672.4,4672.3,3.23377352]
[1757829931152,3.603,4672.4,4672.3,3.23377352]
[1757829932854,3.601,4672.5,4672.4,2.93221874]
[1757829933052,3.601,4672.5,4672.4,0.3015]
[1757829934051,3.7064,4672.6,4672.5,0.792]
[1757829935363,3.7064,4672.6,4672.4,0.792]
[1757829937761,3.7064,4672.6,4672.4,2.93222694]
[1757829938276,3.7064,4672.6,4672.5,2.93218191]
[1757829938437,3.7064,4672.6,4672.5,4.16128191]
[1757829939060,0.1064,4672.6,4672.5,3.23368191]
[1757829939474,0.12005627,4673.0,4672.8,0.792]
[1757829939647,3.7034,4672.9,4672.8,0.792]
[1757829939848,3.7034,4672.9,4672.6,0.792]
[1757829940639,3.7034,4672.9,4672.6,2.93212946]
[1757829940848,3.7034,4672.9,4672.8,0.792]
[1757829941271,3.7034,4672.9,4672.6,0.792]
[1757829941644,3.7034,4672.9,4672.7,0.792]
[1757829941850,0.1064,4672.9,4672.7,0.792]
[1757829942172,1.642,4673.1,4672.8,3.23354451]
[1757829942340,3.595,4672.9,4672.8,3.69454451]
[1757829942668,3.595,4672.9,4672.8,3.23354451]
[1757829944676,0.448,4673.4,4673.1,2.93186364]
[1757829944677,3.594,4673.2,4673.1,2.93186364]
[1757829944877,0.448,4673.4,4673.2,0.792]
[1757829945072,3.594,4673.3,4673.2,2.93185688]
[1757829945248,0.3017,4673.3,4673.1,0.792]
[1757829945455,3.594,4673.2,4673.1,0.792]
[1757829945648,4.3471,4673.2,4672.9,2.93198263]
[1757829945841,4.3471,4673.2,4673.1,0.792]
[1757829946261,0.7531,4673.2,4673.1,0.792]
[1757829946479,4.3461,4673.2,4673.1,0.792]
[1757829946674,4.3461,4673.2,4672.8,0.792]
[1757829946975,4.3461,4673.2,4673.0,0.792]
[1757829947177,4.3461,4673.2,4673.1,0.792]
[1757829947474,4.8088,4673.2,4672.9,0.792]
[1757829947644,0.3017,4673.2,4672.9,0.792]
[1757829947838,0.3017,4673.2,4673.0,0.792]
[1757829947839,4.5061,4673.1,4673.0,0.792]
[1757829948045,4.8186,4673.1,4673.0,2.93195292]
[1757829948572,3.592,4673.1,4673.0,3.24125292]
[1757829949077,3.9045,4673.1,4673.0,2.93195292]
[1757829949776,3.591,4673.1,4673.0,2.047]
[1757829949981,3.591,4673.1,4673.0,1.1013]
[1757829950281,3.9035,4673.1,4673.0,0.792]
[1757829950577,3.9035,4673.1,4673.0,2.93195292]
[1757829951375,3.9035,4673.1,4673.0,0.792]
[1757829951581,4.3549,4673.1,4673.0,0.792]
[1757829951882,3.591,4673.1,4673.0,2.93195292]
[1757829953590,3.59,4673.4,4673.3,0.792]
[1757829953876,3.59,4673.4,4673.3,1.1013]
[1757829955058,0.1064,4673.5,4673.3,1.1013]
[1757829955251,3.589,4673.4,4673.3,3.26251369]
[1757829955579,3.589,4673.4,4673.3,4.20821369]
[1757829959253,3.589,4673.4,4673.3,3.75861369]
[1757829960784,0.1064,4673.5,4673.4,2.93176976]
[1757829961371,0.1064,4673.5,4673.4,3.22486976]
[1757829961552,0.002,4673.8,4673.7,0.792]
[1757829962076,0.3068,4673.8,4673.7,0.792]
[1757829963583,0.3068,4673.8,4673.6,0.792]
[1757829964205,0.7535,4673.8,4673.3,0.792]
[1757829964580,0.8971,4673.7,4673.3,0.792]
[1757829964896,0.3048,4673.4,4673.2,0.792]
[1757829965288,0.8971,4673.3,4673.2,0.792]
[1757829965490,1.2019,4673.3,4673.2,0.792]
[1757829966401,3.6914,4673.6,4673.2,2.93186133]
[1757829966572,3.6914,4673.6,4673.4,2.13976912]
[1757829966772,0.3048,4673.5,4673.4,2.93176912]
[1757829969704,0.3048,4673.5,4673.4,0.792]
[1757829970686,0.7515,4673.5,4673.4,0.792]
[1757829970889,1.2019,4673.5,4673.4,0.792]
[1757829971407,0.3048,4673.5,4673.4,0.792]
[1757829971577,0.7515,4673.5,4673.4,0.792]
[1757829972485,0.7515,4673.5,4673.4,2.93176976]
[1757829973513,0.7515,4673.5,4673.4,0.792]
[1757829974015,0.7515,4673.5,4673.4,2.93176976]
[1757829975817,0.3048,4673.5,4673.4,2.93176976]
[1757829976189,0.3048,4673.5,4673.4,0.792]
[1757829977318,0.3048,4673.5,4673.4,2.93176976]
[1757829978383,3.6914,4673.6,4673.5,2.13972397]
[1757829978787,3.6914,4673.6,4673.5,2.43532397]
[1757829979017,3.6914,4673.6,4673.5,2.89912397]
[1757829979625,3.6893,4673.6,4673.5,2.43532397]
[1757829982626,0.1064,4673.6,4673.5,2.13972397]
[1757829983327,0.1064,4673.6,4673.5,2.43532397]
[1757829984028,0.1064,4673.6,4673.5,2.13972397]
[1757829989127,0.1064,4673.6,4673.4,2.93176599]
[1757829989539,0.1064,4673.6,4673.5,2.13972397]
[1757829990537,0.1064,4673.6,4673.5,3.22732397]
[1757829991103,0.1048,4673.6,4673.5,3.22732397]
[1757829992635,0.1048,4673.6,4673.5,4.57991986]
[1757829992934,0.7402,4673.6,4673.5,2.14459589]
[1757829993118,1.2063,4673.6,4673.4,0.792]
[1757829993300,0.2902,4673.6,4673.4,0.792]
[1757829993500,0.9161,4673.5,4673.4,0.792]
[1757829993706,1.2063,4673.5,4673.4,0.792]
[1757829993933,1.2063,4673.5,4673.3,0.001]
[1757829994136,1.68453,4673.5,4673.3,0.001]
[1757830000336,0.4661,4673.4,4673.3,0.001]
[1757830000852,0.7563,4673.4,4673.3,0.001]
[1757830001044,1.2063,4673.4,4673.3,0.001]
[1757830002456,0.7563,4673.4,4673.3,0.001]
[1757830002862,0.2902,4673.4,4673.3,0.001]
[1757830003560,0.002,4673.6,4673.3,0.001]
[1757830003737,0.4681,4673.6,4673.3,0.001]
[1757830005764,3.571,4673.5,4673.3,0.001]
[1757830006651,0.4681,4673.6,4673.3,0.001]
[1757830006850,3.57,4673.4,4673.3,0.001]
[1757830013757,3.8614,4673.4,4673.3,0.001]
[1757830014075,3.8594,4673.4,4673.3,2.14081554]
[1757830014252,3.8594,4673.4,4673.3,0.001]
[1757830014453,0.2914,4673.4,4673.3,0.001]
[1757830014684,3.8594,4673.4,4673.3,0.001]
[1757830014986,4.3087,4673.4,4673.3,0.001]
[1757830016178,0.7407,4673.4,4673.3,0.001]
[1757830016487,4.3087,4673.4,4673.3,0.001]
[1757830017185,4.7595,4673.4,4673.3,0.001]
[1757830018185,4.7575,4673.4,4673.3,0.001]
[1757830024373,5.24565824,4673.4,4673.3,0.001]
[1757830024571,5.36574066,4673.4,4673.3,0.001]
[1757830025472,5.36573885,4673.4,4673.3,0.001]
[1757830026581,4.87758061,4673.4,4673.3,0.001]
[1757830026792,4.7575,4673.4,4673.3,0.001]
[1757830028304,3.8574,4673.4,4673.3,0.001]
[1757830028809,3.564,4673.4,4673.3,0.7969]
[1757830028988,0.002,4673.6,4673.3,0.7969]
[1757830029170,3.564,4673.5,4673.3,0.7969]
[1757830029989,3.564,4673.5,4673.3,0.2985]
[1757830035778,0.3096,4673.4,4673.3,0.001]
[1757830036111,0.7595,4673.4,4673.3,0.001]
[1757830040128,0.7939,4673.4,4673.3,0.001]
[1757830040335,1.2438,4673.4,4673.3,0.001]
[1757830040992,0.7595,4673.4,4673.3,0.001]
[1757830041625,0.87958061,4673.4,4673.3,0.001]
[1757830041993,0.7595,4673.4,4673.3,0.001]
[1757830042195,0.3096,4673.4,4673.3,0.001]
[1757830043634,3.564,4673.5,4673.3,0.001]
[1757830044604,3.68408061,4673.5,4673.3,0.001]
[1757830044806,0.3096,4673.4,4673.3,0.001]
[1757830045127,3.8726,4673.4,4673.3,0.001]
[1757830045339,5.42043087,4673.4,4673.3,0.001]
[1757830045521,7.88032678,4673.4,4673.3,0.001]
[1757830046344,5.74055702,4673.4,4673.3,0.001]
[1757830046649,3.99264487,4673.4,4673.3,0.001]
[1757830046929,3.8726,4673.4,4673.3,0.001]
[1757830047296,3.9926171,4673.4,4673.3,0.001]
[1757830047501,3.8726,4673.4,4673.3,0.001]
[1757830047724,3.563,4673.4,4673.3,0.2954]
[1757830047900,3.564,4673.4,4673.3,0.2954]
[1757830048102,3.564,4673.4,4673.3,1.2279]
[1757830048720,0.002,4673.6,4673.3,1.2279]
[1757830048922,3.564,4673.5,4673.4,0.9325]
[1757830049238,3.564,4673.5,4673.4,0.2944]
[1757830058168,0.1064,4673.4,4673.3,0.001]
[1757830058833,3.6694,4673.4,4673.3,0.001]
[1757830061154,0.1064,4673.4,4673.3,0.2954]
[1757830061343,0.002,4673.6,4673.4,0.792]
[1757830061548,0.002,4673.6,4673.5,2.93172397]
[1757830061850,0.002,4673.6,4673.5,4.15862397]
[1757830062222,0.002,4673.6,4673.5,4.80064351]
[1757830069470,0.002,4673.6,4673.5,2.66091954]
[1757830069660,0.002,4673.6,4673.5,3.16642178]
[1757830069870,0.002,4673.6,4673.5,3.16742178]
[1757830070378,0.002,4673.6,4673.5,5.30714575]
[1757830071279,0.002,4673.6,4673.5,5.41354575]
[1757830072652,0.002,4673.6,4673.5,4.94034575]
[1757830076707,1.2018,4673.6,4673.5,0.74941954]
[1757830076984,3.34147819,4673.6,4673.5,0.001]
[1757830082292,6.90447819,4673.6,4673.5,0.001]
[1757830082503,7.02430199,4673.6,4673.5,0.001]
[1757830083489,0.7549,4673.6,4673.5,0.001]
[1757830083690,0.002,4673.6,4673.5,1.5696]
[1757830083854,0.002,4673.6,4673.5,4.14432397]
[1757830084181,0.002,4673.6,4673.5,4.1657212]
[1757830084403,0.002,4673.6,4673.5,4.78364016]
[1757830086924,0.002,4673.6,4673.5,2.64391619]
[1757830088016,0.002,4673.6,4673.5,2.20891619]
[1757830088926,0.002,4673.6,4673.5,4.34864016]
[1757830089421,0.002,4673.6,4673.5,4.81854016]
[1757830090534,0.002,4673.6,4673.5,2.67881619]
[1757830090825,0.002,4673.6,4673.5,2.20891619]
[1757830091192,0.002,4673.6,4673.5,1.71871619]
[1757830094199,0.002,4673.6,4673.5,3.85844016]
[1757830094622,0.002,4673.6,4673.5,1.71871619]
[1757830095430,0.002,4673.6,4673.5,4.80864016]
[1757830096299,0.002,4673.6,4673.5,4.91504016]
[1757830096609,0.002,4673.6,4673.5,5.02344016]
[1757830097007,0.002,4673.6,4673.5,7.91704016]
[1757830099104,0.002,4673.8,4673.7,2.93163241]
[1757830099303,0.002,4674.1,4674.0,2.93149507]
[1757830099527,0.002,4674.1,4674.0,9.80509002]
[1757830099727,0.002,4674.1,4674.0,10.77607496]
[1757830099928,0.002,4674.1,4674.0,12.23009276]
[1757830104424,0.002,4674.1,4674.0,11.79219276]
[1757830104625,0.002,4674.1,4674.0,11.32329276]
[1757830107129,0.002,4674.1,4674.0,11.42969276]
[1757830109553,0.7486,4674.1,4674.0,11.13949276]
[1757830110072,0.303,4674.1,4674.0,11.13949276]
[1757830110436,0.002,4674.1,4674.0,11.44869276]
[1757830111362,0.002,4674.1,4674.0,11.93839276]
[1757830111563,0.002,4674.1,4674.0,12.36699276]
[1757830112076,0.002,4674.1,4674.0,7.57749276]
[1757830112281,0.002,4674.1,4674.0,11.44869276]
[1757830113552,0.002,4674.1,4674.0,11.13949276]
[1757830115991,0.002,4674.1,4674.0,11.87729276]
[1757830116300,0.002,4674.1,4674.0,11.93839276]
[1757830116492,0.002,4674.1,4674.0,12.36699276]
[1757830116996,0.002,4674.1,4674.0,11.93839276]
[1757830117503,0.002,4674.1,4674.0,11.44869276]
[1757830118006,0.002,4674.1,4674.0,11.13949276]
[1757830118381,0.303,4674.1,4674.0,11.13949276]
[1757830120322,0.7727,4674.1,4674.0,0.98397989]
[1757830120471,1.2183,4674.1,4673.5,0.001]
[1757830120667,0.1064,4674.0,4673.5,0.001]
[1757830120870,2.13954085,4673.9,4673.8,0.001]
[1757830121101,3.35584085,4673.9,4673.8,0.001]
[1757830126089,1.2163,4673.9,4673.8,0.001]
[1757830126285,4.7773,4673.9,4673.8,0.001]
[1757830127192,6.91684085,4673.9,4673.8,0.001]
[1757830127388,7.85333898,4673.9,4673.8,0.001]
[1757830128590,5.71379813,4673.9,4673.8,0.001]
[1757830128791,7.85333898,4673.9,4673.8,0.001]
[1757830129616,7.85433898,4673.9,4673.8,0.001]
[1757830130199,5.71479813,4673.9,4673.8,0.001]
[1757830130393,7.85433898,4673.9,4673.8,0.001]
[1757830134567,2.15279813,4673.9,4673.8,0.001]
[1757830134742,4.7783,4673.9,4673.8,0.001]
[1757830135174,6.91784085,4673.9,4673.8,0.001]
[1757830135374,4.7783,4673.9,4673.8,0.001]
[1757830135776,6.91784085,4673.9,4673.8,0.001]
[1757830137578,6.91984085,4673.9,4673.8,0.001]
[1757830145274,7.03964809,4673.9,4673.8,0.001]
[1757830150085,7.24004499,4673.9,4673.8,0.001]
[1757830150400,7.24004493,4673.9,4673.8,0.001]
[1757830153508,7.25894493,4673.9,4673.8,0.001]
[1757830154424,10.25894493,4673.9,4673.8,0.001]
[1757830154592,10.7206944,4673.9,4673.8,0.001]
[1757830154974,11.57244911,4673.9,4673.8,0.001]
[1757830155433,10.80632321,4673.9,4673.8,0.001]
[1757830155577,11.57244911,4673.9,4673.8,0.001]
[1757830155927,2.13967819,4673.6,4673.5,0.001]
[1757830156136,9.02088227,4673.6,4673.5,0.001]
[1757830156311,10.24008227,4673.6,4673.5,0.001]
[1757830156501,10.70183174,4673.6,4673.5,0.001]
[1757830156701,10.78746935,4673.6,4673.5,0.001]
[1757830157099,11.55505933,4673.6,4673.5,0.001]
[1757830157429,10.78746935,4673.6,4673.5,0.001]
[1757830158552,10.78746935,4673.6,4673.1,0.001]
[1757830158553,2.13986133,4673.2,4673.1,1e-08]
[1757830158751,2.13986133,4673.2,4672.4,1e-08]
[1757830158752,6.37711922,4672.9,4672.4,1e-08]
[1757830158905,8.80690113,4672.5,4672.4,1e-08]
[1757830159254,12.68810521,4672.5,4672.4,1e-08]
[1757830159401,14.73926633,4672.5,4672.4,1e-08]
[1757830159841,14.73926633,4672.5,4669.2,0.4558]
[1757830159842,2.14066569,4671.5,4669.2,0.4558]
[1757830160004,3.0,4672.4,4666.8,0.08]
[1757830160005,2.14086041,4671.1,4666.8,0.08]
[1757830160207,0.5740215,4670.4,4668.6,0.4558]
[1757830160443,2.1414339,4669.8,4668.6,0.4558]
[1757830160650,5.234,4669.7,4668.6,0.4558]
[1757830160808,5.234,4669.7,4667.3,0.08570146]
[1757830160809,2.14188963,4668.8,4668.1,0.4558]
[1757830161002,5.73496729,4668.7,4668.1,0.4558]
[1757830161329,3.593,4668.7,4668.6,0.2991]
[1757830161505,1.642,4668.8,4668.6,0.7549]
[1757830161706,3.593,4668.7,4668.6,0.2991]
[1757830161922,3.593,4668.7,4668.6,0.6533]
[1757830162255,3.593,4668.7,4668.6,1.9011]
[1757830162903,1.642,4668.8,4668.7,0.792]
[1757830163108,5.235,4668.8,4668.7,1.602]
[1757830163305,5.235,4668.8,4668.7,1.9011]
[1757830163636,3.594,4668.8,4668.7,1.9011]
[1757830164205,1.643,4669.5,4668.7,1.9011]
[1757830164206,0.1064,4668.9,4668.7,1.9011]
[1757830164406,3.7004,4668.9,4668.8,1.62341877]
[1757830164601,3.7004,4668.9,4668.8,1.9011]
[1757830165013,3.7004,4668.9,4668.8,1.5469]
[1757830165839,3.7004,4668.9,4668.8,0.792]
[1757830166140,4.4589,4668.9,4668.3,0.792]
[1757830166341,0.1064,4668.7,4668.3,0.792]
[1757830166532,3.594,4668.6,4668.3,0.4558]
[1757830166733,3.594,4668.6,4668.5,1.0911]
[1757830167949,3.594,4668.6,4668.5,1.5469]
[1757830169124,3.594,4668.6,4668.5,1.9011]
[1757830170049,3.594,4668.6,4668.5,0.792]
[1757830170667,3.594,4668.6,4668.5,1.0911]
[1757830171657,3.594,4668.6,4668.5,0.792]
[1757830172376,3.8836,4668.6,4668.5,0.792]
[1757830172682,3.594,4668.6,4668.5,1.5479]
[1757830174544,3.594,4668.6,4668.5,1.0921]
[1757830175166,3.594,4668.6,4668.5,0.793]
[1757830175167,4.3525,4668.6,4668.5,0.793]
[1757830176872,3.594,4668.6,4668.5,0.793]
[1757830177087,3.594,4668.6,4668.5,1.5479]
[1757830177487,3.594,4668.6,4668.5,1.9021]
[1757830178087,0.1064,4668.7,4668.6,0.792]
[1757830178383,0.1064,4668.7,4668.6,1.2478]
[1757830178384,3.6964,4668.7,4668.6,1.2478]
[1757830178594,3.6964,4668.7,4668.6,1.5469]
[1757830179288,3.6964,4668.7,4668.5,0.001]
[1757830181910,0.1064,4668.7,4668.5,0.001]
[1757830182095,3.588,4668.6,4668.5,0.001]
[1757830183300,3.588,4668.6,4668.5,1.0921]
[1757830183497,3.8776,4668.6,4668.5,0.793]
[1757830183901,3.588,4668.6,4668.5,1.5479]
[1757830185401,3.588,4668.6,4668.5,1.0921]
[1757830186293,3.588,4668.6,4668.5,0.793]
[1757830187175,3.8788,4668.6,4668.5,0.793]
[1757830187375,4.3249,4668.6,4668.5,0.793]
[1757830188687,3.588,4668.6,4668.5,0.793]